[Event "Titled Tuesday Blitz December 13 Early 2022"]
[White "Badelka, Olga"]
[Black "Samunenkov, Ihor"]
[WhiteFideId "13509926"]
[BlackFideId "14187086"]
[WhiteElo "2337"]
[BlackElo "2442"]
[Result "1-0"]
[Round "03"]
[TimeControl "180+1"]
[Date "2022.12.14"]
[WhiteClock "0:00:23"]
[BlackClock "0:00:01"]

1. c4 {[%clk 0:03:00]}  c5 {[%clk 0:02:59]} 2. Nc3 {[%clk 0:03:00]}  Nc6 {[%clk 0:02:59]} 3. Nf3 {[%clk 0:03:00]}  Nf6 {[%clk 0:02:55]} 4. e3 {[%clk 0:02:57]}  e5 {[%clk 0:02:55]} 5. d4 {[%clk 0:02:40]}  e4 {[%clk 0:02:52]} 6. d5 {[%clk 0:02:33]}  exf3 {[%clk 0:02:52]} 7. dxc6 {[%clk 0:02:33]}  dxc6 {[%clk 0:02:53]} 8. Qxd8+ {[%clk 0:02:23]}  Kxd8 {[%clk 0:02:54]} 9. gxf3 {[%clk 0:02:23]}  Kc7 {[%clk 0:02:51]} 10. b3 {[%clk 0:02:20]}  Be7 {[%clk 0:02:51]} 11. Bb2 {[%clk 0:02:21]}  Rd8 {[%clk 0:02:52]} 12. Rg1 {[%clk 0:02:12]}  g6 {[%clk 0:02:50]} 13. Ne4 {[%clk 0:02:04]}  Nxe4 {[%clk 0:02:30]} 14. fxe4 {[%clk 0:02:05]}  a5 {[%clk 0:02:30]} 15. a4 {[%clk 0:02:03]}  Be6 {[%clk 0:02:29]} 16. Rd1 {[%clk 0:01:56]}  Rxd1+ {[%clk 0:02:20]} 17. Kxd1 {[%clk 0:01:57]}  b5 {[%clk 0:02:21]} 18. Kc2 {[%clk 0:01:53]}  b4 {[%clk 0:01:52]} 19. Bd3 {[%clk 0:01:49]}  Bh4 {[%clk 0:01:49]} 20. f4 {[%clk 0:01:37]}  f6 {[%clk 0:01:23]} 21. f5 {[%clk 0:01:30]}  Bf7 {[%clk 0:01:10]} 22. Rg4 {[%clk 0:01:06]}  Bg5 {[%clk 0:00:44]} 23. e5 {[%clk 0:00:58]}  gxf5 {[%clk 0:00:39]} 24. Bxf5 {[%clk 0:00:56]}  Bh5 {[%clk 0:00:18]} 25. Rg3 {[%clk 0:00:48]}  Rf8 {[%clk 0:00:14]} 26. Bxh7 {[%clk 0:00:37]}  Kb6 {[%clk 0:00:05]} 27. Be4 {[%clk 0:00:30]}  Rf7 {[%clk 0:00:01]} 28. e6 {[%clk 0:00:24]}  Re7 {[%clk 0:00:02]} 29. Bf5 {[%clk 0:00:25]}  Re8 {[%clk 0:00:01]} 30. h4 {[%clk 0:00:23]} 1-0


[Site "https://www.chess.com"]

[Event "Titled Tuesday Blitz December 13 Early 2022"]
[White "Bagwe Gaurang"]
[Black "Bruned, Boris"]
[WhiteFideId "45039895"]
[BlackFideId "621790"]
[WhiteElo "1847"]
[BlackElo "2049"]
[Result "1-0"]
[Round "03"]
[TimeControl "180+1"]
[Date "2022.12.14"]
[WhiteClock "0:00:20"]
[BlackClock "0:00:02"]

1. e4 {[%clk 0:03:00]}  b6 {[%clk 0:02:59]} 2. d4 {[%clk 0:02:59]}  Bb7 {[%clk 0:02:59]} 3. Nc3 {[%clk 0:03:00]}  e6 {[%clk 0:03:00]} 4. a3 {[%clk 0:02:59]}  Nf6 {[%clk 0:02:57]} 5. Bd3 {[%clk 0:02:51]}  c5 {[%clk 0:02:48]} 6. Nge2 {[%clk 0:02:49]}  cxd4 {[%clk 0:02:21]} 7. Nxd4 {[%clk 0:02:48]}  d6 {[%clk 0:02:22]} 8. O-O {[%clk 0:02:47]}  a6 {[%clk 0:02:21]} 9. Bg5 {[%clk 0:02:40]}  Be7 {[%clk 0:02:21]} 10. Qd2 {[%clk 0:02:25]}  Nc6 {[%clk 0:02:20]} 11. Nxc6 {[%clk 0:02:24]}  Bxc6 {[%clk 0:02:21]} 12. Rad1 {[%clk 0:02:24]}  O-O {[%clk 0:02:17]} 13. f3 {[%clk 0:02:23]}  b5 {[%clk 0:02:14]} 14. Be2 {[%clk 0:02:17]}  Qc7 {[%clk 0:02:13]} 15. Bf4 {[%clk 0:02:00]}  Rfd8 {[%clk 0:02:10]} 16. Kh1 {[%clk 0:02:00]}  Rac8 {[%clk 0:02:05]} 17. h3 {[%clk 0:01:58]}  Qb7 {[%clk 0:02:02]} 18. Bh2 {[%clk 0:01:51]}  a5 {[%clk 0:01:59]} 19. Bd3 {[%clk 0:01:47]}  Nd7 {[%clk 0:01:53]} 20. Qe3 {[%clk 0:01:37]}  Nc5 {[%clk 0:01:46]} 21. Be2 {[%clk 0:01:37]}  b4 {[%clk 0:01:09]} 22. Nb1 {[%clk 0:01:37]}  Na4 {[%clk 0:00:43]} 23. Qb3 {[%clk 0:01:28]}  bxa3 {[%clk 0:00:29]} 24. bxa3 {[%clk 0:01:26]}  Nc5 {[%clk 0:00:20]} 25. Qe3 {[%clk 0:01:25]}  Ba4 {[%clk 0:00:19]} 26. Rd2 {[%clk 0:01:12]}  Qb2 {[%clk 0:00:12]} 27. c4 {[%clk 0:00:52]}  Qb3 {[%clk 0:00:11]} 28. Qf2 {[%clk 0:00:43]}  Rb8 {[%clk 0:00:07]} 29. Bf4 {[%clk 0:00:34]}  Qb6 {[%clk 0:00:07]} 30. Be3 {[%clk 0:00:33]}  Qc6 {[%clk 0:00:06]} 31. Nc3 {[%clk 0:00:32]}  Bb3 {[%clk 0:00:06]} 32. Rc1 {[%clk 0:00:30]}  Na4 {[%clk 0:00:06]} 33. Nb1 {[%clk 0:00:22]}  Nc5 {[%clk 0:00:03]} 34. Bd4 {[%clk 0:00:21]}  Bf8 {[%clk 0:00:02]} 35. Nc3 {[%clk 0:00:20]}  Rdc8 {[%clk 0:00:01]} 36. Qe3 {[%clk 0:00:20]}  Rb7 {[%clk 0:00:02]} 37. f4 {[%clk 0:00:20]}  Rcb8 {[%clk 0:00:02]} 38. Bf3 {[%clk 0:00:20]} 1-0


[Site "https://www.chess.com"]

[Event "Titled Tuesday Blitz December 13 Early 2022"]
[White "Balint, Vilmos"]
[Black "Torres Dominguez, David"]
[WhiteFideId "718050"]
[BlackFideId "2220857"]
[WhiteElo "2183"]
[BlackElo "2037"]
[Result "1/2-1/2"]
[Round "03"]
[TimeControl "180+1"]
[Date "2022.12.14"]
[WhiteClock "0:01:27"]
[BlackClock "0:00:10"]

1. e4 {[%clk 0:02:51]}  Nc6 {[%clk 0:02:59]} 2. d4 {[%clk 0:02:50]}  e5 {[%clk 0:02:59]} 3. d5 {[%clk 0:02:50]}  Nce7 {[%clk 0:02:59]} 4. c4 {[%clk 0:02:50]}  Ng6 {[%clk 0:02:59]} 5. Be3 {[%clk 0:02:49]}  Bb4+ {[%clk 0:02:57]} 6. Ke2 {[%clk 0:02:49]}  Be7 {[%clk 0:02:32]} 7. g3 {[%clk 0:02:47]}  Nf6 {[%clk 0:02:30]} 8. f3 {[%clk 0:02:47]}  O-O {[%clk 0:02:27]} 9. Bh3 {[%clk 0:02:45]}  d6 {[%clk 0:02:16]} 10. Bxc8 {[%clk 0:02:45]}  Rxc8 {[%clk 0:02:16]} 11. Nc3 {[%clk 0:02:44]}  a6 {[%clk 0:02:14]} 12. Nh3 {[%clk 0:02:44]}  Qd7 {[%clk 0:02:08]} 13. Nf2 {[%clk 0:02:44]}  h6 {[%clk 0:02:08]} 14. Qd2 {[%clk 0:02:42]}  Nh7 {[%clk 0:02:07]} 15. h4 {[%clk 0:02:42]}  f5 {[%clk 0:02:01]} 16. h5 {[%clk 0:02:35]}  Nh8 {[%clk 0:01:59]} 17. Raf1 {[%clk 0:02:30]}  Rce8 {[%clk 0:01:33]} 18. Qd3 {[%clk 0:02:25]}  Bg5 {[%clk 0:01:29]} 19. Nh3 {[%clk 0:02:16]}  Bxe3 {[%clk 0:01:28]} 20. Qxe3 {[%clk 0:02:16]}  f4 {[%clk 0:01:18]} 21. gxf4 {[%clk 0:02:12]}  exf4 {[%clk 0:01:19]} 22. Nxf4 {[%clk 0:02:12]}  Ng5 {[%clk 0:01:16]} 23. Rhg1 {[%clk 0:02:08]}  Rf6 {[%clk 0:00:58]} 24. Rg4 {[%clk 0:02:05]}  Nhf7 {[%clk 0:00:57]} 25. Rfg1 {[%clk 0:02:02]}  Ne5 {[%clk 0:00:56]} 26. R4g3 {[%clk 0:02:01]}  Nxc4 {[%clk 0:00:56]} 27. Qd4 {[%clk 0:02:00]}  Ne5 {[%clk 0:00:56]} 28. Kd1 {[%clk 0:01:59]}  Nexf3 {[%clk 0:00:55]} 29. Rxf3 {[%clk 0:01:54]}  Nxf3 {[%clk 0:00:50]} 30. Qxf6 {[%clk 0:01:54]}  Nxg1 {[%clk 0:00:50]} 31. Qg6 {[%clk 0:01:54]}  Qf7 {[%clk 0:00:43]} 32. Qg4 {[%clk 0:01:44]}  Rf8 {[%clk 0:00:37]} 33. Ne6 {[%clk 0:01:42]}  Qf1+ {[%clk 0:00:36]} 34. Kc2 {[%clk 0:01:43]}  Rf7 {[%clk 0:00:31]} 35. Kb3 {[%clk 0:01:39]}  Nf3 {[%clk 0:00:30]} 36. Nd8 {[%clk 0:01:39]}  Nd2+ {[%clk 0:00:29]} 37. Ka3 {[%clk 0:01:38]}  b5 {[%clk 0:00:11]} 38. Nxf7 {[%clk 0:01:29]}  b4+ {[%clk 0:00:11]} 39. Kxb4 {[%clk 0:01:29]}  Qc4+ {[%clk 0:00:11]} 40. Ka3 {[%clk 0:01:29]}  Qc5+ {[%clk 0:00:09]} 41. Ka4 {[%clk 0:01:28]}  Qc4+ {[%clk 0:00:09]} 42. Ka3 {[%clk 0:01:28]}  Qc5+ {[%clk 0:00:09]} 43. Ka4 {[%clk 0:01:27]}  Qc4+ {[%clk 0:00:10]} 44. Ka5 {[%clk 0:01:27]}  Qc5+ {[%clk 0:00:10]} 45. Ka4 {[%clk 0:01:27]} 1/2-1/2


[Site "https://www.chess.com"]

[Event "Titled Tuesday Blitz December 13 Early 2022"]
[White "Berezin, Viktor"]
[Black "Fromm, Marius"]
[WhiteFideId "14107872"]
[BlackFideId "12993190"]
[WhiteElo "2310"]
[BlackElo "2325"]
[Result "0-1"]
[Round "03"]
[TimeControl "180+1"]
[Date "2022.12.14"]
[WhiteClock "0:00:25"]
[BlackClock "0:00:20"]

1. d4 {[%clk 0:03:00]}  Nf6 {[%clk 0:02:57]} 2. c4 {[%clk 0:02:59]}  e6 {[%clk 0:02:57]} 3. Nf3 {[%clk 0:02:58]}  c5 {[%clk 0:02:57]} 4. d5 {[%clk 0:02:58]}  exd5 {[%clk 0:02:58]} 5. cxd5 {[%clk 0:02:58]}  d6 {[%clk 0:02:59]} 6. Nc3 {[%clk 0:02:58]}  g6 {[%clk 0:03:00]} 7. g3 {[%clk 0:02:59]}  Bg7 {[%clk 0:03:01]} 8. Bg2 {[%clk 0:03:00]}  O-O {[%clk 0:03:02]} 9. O-O {[%clk 0:03:00]}  Re8 {[%clk 0:03:01]} 10. Bf4 {[%clk 0:03:01]}  Ne4 {[%clk 0:02:58]} 11. Nxe4 {[%clk 0:03:01]}  Rxe4 {[%clk 0:02:59]} 12. Nd2 {[%clk 0:03:01]}  Rxf4 {[%clk 0:02:59]} 13. gxf4 {[%clk 0:03:00]}  Bxb2 {[%clk 0:03:00]} 14. Rb1 {[%clk 0:03:00]}  Bg7 {[%clk 0:03:01]} 15. Nc4 {[%clk 0:02:58]}  Na6 {[%clk 0:03:00]} 16. e4 {[%clk 0:02:54]}  Rb8 {[%clk 0:02:58]} 17. e5 {[%clk 0:02:54]}  dxe5 {[%clk 0:02:54]} 18. Nxe5 {[%clk 0:02:44]}  Bf5 {[%clk 0:02:44]} 19. Rb3 {[%clk 0:02:31]}  Nb4 {[%clk 0:02:39]} 20. Qd2 {[%clk 0:02:27]}  Nc2 {[%clk 0:02:24]} 21. d6 {[%clk 0:02:13]}  Nd4 {[%clk 0:02:19]} 22. Rxb7 {[%clk 0:01:36]}  Rxb7 {[%clk 0:02:19]} 23. Bxb7 {[%clk 0:01:37]}  Qxd6 {[%clk 0:02:20]} 24. Qe3 {[%clk 0:01:29]}  Be6 {[%clk 0:01:48]} 25. Rc1 {[%clk 0:01:21]}  Bxa2 {[%clk 0:01:45]} 26. Nc4 {[%clk 0:01:20]}  Bxc4 {[%clk 0:01:40]} 27. Rxc4 {[%clk 0:01:21]}  Bf6 {[%clk 0:01:38]} 28. Bf3 {[%clk 0:01:10]}  Kg7 {[%clk 0:01:38]} 29. Ra4 {[%clk 0:01:09]}  Qc7 {[%clk 0:01:27]} 30. Kg2 {[%clk 0:01:08]}  h5 {[%clk 0:01:22]} 31. Ra6 {[%clk 0:01:04]}  Nf5 {[%clk 0:01:19]} 32. Qe4 {[%clk 0:00:51]}  c4 {[%clk 0:01:13]} 33. Rc6 {[%clk 0:00:49]}  Qd7 {[%clk 0:00:55]} 34. Rxf6 {[%clk 0:00:41]}  Nh4+ {[%clk 0:00:31]} 35. Kg3 {[%clk 0:00:40]}  Nxf3 {[%clk 0:00:24]} 36. Kxf3 {[%clk 0:00:31]}  Qh3+ {[%clk 0:00:18]} 37. Ke2 {[%clk 0:00:29]}  Qd3+ {[%clk 0:00:19]} 38. Qxd3 {[%clk 0:00:24]}  cxd3+ {[%clk 0:00:20]} 39. Kxd3 {[%clk 0:00:25]}  Kxf6 {[%clk 0:00:20]} 0-1


[Site "https://www.chess.com"]

[Event "Titled Tuesday Blitz December 13 Early 2022"]
[White "Bochnicka, Vladimir"]
[Black "Larina, Maria"]
[WhiteFideId "14943450"]
[BlackFideId "24113182"]
[WhiteElo "2239"]
[BlackElo "1848"]
[Result "1-0"]
[Round "03"]
[TimeControl "180+1"]
[Date "2022.12.14"]
[WhiteClock "0:00:27"]
[BlackClock "0:00:10"]

1. e4 {[%clk 0:02:55]}  c6 {[%clk 0:02:56]} 2. d4 {[%clk 0:02:55]}  d5 {[%clk 0:02:56]} 3. e5 {[%clk 0:02:55]}  c5 {[%clk 0:02:55]} 4. dxc5 {[%clk 0:02:53]}  e6 {[%clk 0:02:56]} 5. a3 {[%clk 0:02:53]}  Bxc5 {[%clk 0:02:54]} 6. Nf3 {[%clk 0:02:49]}  Ne7 {[%clk 0:02:49]} 7. b4 {[%clk 0:02:48]}  Bb6 {[%clk 0:02:48]} 8. Bb2 {[%clk 0:02:47]}  O-O {[%clk 0:02:48]} 9. Bd3 {[%clk 0:02:47]}  Ng6 {[%clk 0:02:47]} 10. O-O {[%clk 0:02:46]}  Nd7 {[%clk 0:02:40]} 11. Nbd2 {[%clk 0:02:44]}  Qc7 {[%clk 0:02:37]} 12. Re1 {[%clk 0:02:38]}  f6 {[%clk 0:02:35]} 13. exf6 {[%clk 0:02:29]}  Nxf6 {[%clk 0:02:36]} 14. Bxg6 {[%clk 0:02:27]}  hxg6 {[%clk 0:02:34]} 15. Ne5 {[%clk 0:02:23]}  Ne4 {[%clk 0:02:09]} 16. Nxe4 {[%clk 0:02:21]}  dxe4 {[%clk 0:02:07]} 17. Bd4 {[%clk 0:02:02]}  Bxd4 {[%clk 0:02:02]} 18. Qxd4 {[%clk 0:02:01]}  Qxc2 {[%clk 0:01:52]} 19. Rac1 {[%clk 0:01:55]}  Qa2 {[%clk 0:01:48]} 20. Nxg6 {[%clk 0:01:53]}  Rf7 {[%clk 0:01:43]} 21. Ne7+ {[%clk 0:01:37]}  Rxe7 {[%clk 0:01:31]} 22. Qd8+ {[%clk 0:01:38]}  Kf7 {[%clk 0:01:31]} 23. Rxe4 {[%clk 0:01:13]}  e5 {[%clk 0:01:20]} 24. Re3 {[%clk 0:00:44]}  e4 {[%clk 0:00:35]} 25. Rec3 {[%clk 0:00:39]}  Re8 {[%clk 0:00:26]} 26. Rc7+ {[%clk 0:00:28]}  Kg6 {[%clk 0:00:10]} 27. Qxe8+ {[%clk 0:00:27]}  Kh7 {[%clk 0:00:10]} 28. Qh5+ {[%clk 0:00:26]}  Kg8 {[%clk 0:00:10]} 29. Rxc8+ {[%clk 0:00:26]}  Rxc8 {[%clk 0:00:10]} 30. Rxc8# {[%clk 0:00:27]} 1-0


[Site "https://www.chess.com"]

[Event "Titled Tuesday Blitz December 13 Early 2022"]
[White "Budrewicz, Krzysztof"]
[Black "Bluebaum, Matthias"]
[WhiteFideId "1127950"]
[BlackFideId "24651516"]
[WhiteElo "2188"]
[BlackElo "2634"]
[Result "0-1"]
[Round "03"]
[TimeControl "180+1"]
[Date "2022.12.14"]
[WhiteClock "0:00:14"]
[BlackClock "0:00:19"]

1. d4 {[%clk 0:03:00]}  d5 {[%clk 0:03:00]} 2. c4 {[%clk 0:03:00]}  e6 {[%clk 0:03:00]} 3. Nf3 {[%clk 0:03:00]}  Nf6 {[%clk 0:03:00]} 4. Nc3 {[%clk 0:03:00]}  Bb4 {[%clk 0:03:01]} 5. e3 {[%clk 0:02:57]}  O-O {[%clk 0:03:01]} 6. Bd2 {[%clk 0:02:57]}  Nbd7 {[%clk 0:03:00]} 7. a3 {[%clk 0:02:55]}  Be7 {[%clk 0:02:59]} 8. c5 {[%clk 0:02:54]}  c6 {[%clk 0:02:56]} 9. b4 {[%clk 0:02:53]}  Qc7 {[%clk 0:02:54]} 10. Be2 {[%clk 0:02:51]}  e5 {[%clk 0:02:54]} 11. Qc2 {[%clk 0:02:44]}  Re8 {[%clk 0:02:53]} 12. O-O {[%clk 0:02:40]}  e4 {[%clk 0:02:49]} 13. Ne1 {[%clk 0:02:40]}  Nf8 {[%clk 0:02:49]} 14. a4 {[%clk 0:02:40]}  Ng4 {[%clk 0:02:47]} 15. g3 {[%clk 0:02:37]}  Ng6 {[%clk 0:02:43]} 16. f3 {[%clk 0:02:35]}  exf3 {[%clk 0:02:40]} 17. Nxf3 {[%clk 0:02:35]}  Bf6 {[%clk 0:02:39]} 18. e4 {[%clk 0:02:28]}  dxe4 {[%clk 0:02:20]} 19. Nxe4 {[%clk 0:02:28]}  Bf5 {[%clk 0:02:21]} 20. Nxf6+ {[%clk 0:02:17]}  Nxf6 {[%clk 0:02:22]} 21. Qxf5 {[%clk 0:02:17]}  Rxe2 {[%clk 0:02:22]} 22. Bg5 {[%clk 0:02:14]}  Nd5 {[%clk 0:02:14]} 23. Rae1 {[%clk 0:02:04]}  Rae8 {[%clk 0:02:12]} 24. Rxe2 {[%clk 0:02:04]}  Rxe2 {[%clk 0:02:13]} 25. Qd3 {[%clk 0:01:55]}  Re8 {[%clk 0:02:11]} 26. b5 {[%clk 0:01:53]}  Qd7 {[%clk 0:02:08]} 27. bxc6 {[%clk 0:01:45]}  bxc6 {[%clk 0:02:09]} 28. Bd2 {[%clk 0:01:28]}  h6 {[%clk 0:01:58]} 29. Re1 {[%clk 0:01:21]}  Rxe1+ {[%clk 0:01:57]} 30. Bxe1 {[%clk 0:01:22]}  Qg4 {[%clk 0:01:57]} 31. Kf2 {[%clk 0:01:18]}  h5 {[%clk 0:01:36]} 32. Bd2 {[%clk 0:01:15]}  h4 {[%clk 0:01:34]} 33. Qe2 {[%clk 0:01:15]}  hxg3+ {[%clk 0:01:28]} 34. hxg3 {[%clk 0:01:15]}  Nge7 {[%clk 0:01:26]} 35. Qe5 {[%clk 0:01:10]}  f6 {[%clk 0:01:20]} 36. Qb8+ {[%clk 0:00:43]}  Kh7 {[%clk 0:01:21]} 37. Bf4 {[%clk 0:00:43]}  Nf5 {[%clk 0:01:12]} 38. Qb1 {[%clk 0:00:37]}  Qg6 {[%clk 0:00:58]} 39. Qd3 {[%clk 0:00:32]}  Kg8 {[%clk 0:00:46]} 40. Bb8 {[%clk 0:00:31]}  a5 {[%clk 0:00:41]} 41. Qe4 {[%clk 0:00:29]}  Kf7 {[%clk 0:00:28]} 42. g4 {[%clk 0:00:26]}  Nfe7 {[%clk 0:00:21]} 43. Qxg6+ {[%clk 0:00:26]}  Nxg6 {[%clk 0:00:20]} 44. Bd6 {[%clk 0:00:26]}  Nf8 {[%clk 0:00:18]} 45. Nd2 {[%clk 0:00:24]}  Ne6 {[%clk 0:00:18]} 46. Nf3 {[%clk 0:00:24]}  Nc3 {[%clk 0:00:18]} 47. Ke3 {[%clk 0:00:22]}  Nxa4 {[%clk 0:00:18]} 48. Kd3 {[%clk 0:00:21]}  Nb2+ {[%clk 0:00:16]} 49. Kc2 {[%clk 0:00:19]}  Nc4 {[%clk 0:00:16]} 50. Bb8 {[%clk 0:00:16]}  Ne3+ {[%clk 0:00:16]} 51. Kb3 {[%clk 0:00:16]}  Nxg4 {[%clk 0:00:17]} 52. Ka4 {[%clk 0:00:15]}  Ne3 {[%clk 0:00:17]} 53. Kxa5 {[%clk 0:00:15]}  g5 {[%clk 0:00:18]} 54. Kb6 {[%clk 0:00:16]}  g4 {[%clk 0:00:18]} 55. Nh4 {[%clk 0:00:16]}  Nxd4 {[%clk 0:00:19]} 56. Bf4 {[%clk 0:00:14]}  Nd5+ {[%clk 0:00:18]} 57. Kb7 {[%clk 0:00:14]}  Nxf4 {[%clk 0:00:19]} 0-1


[Site "https://www.chess.com"]

[Event "Titled Tuesday Blitz December 13 Early 2022"]
[White "Colas, Joshua"]
[Black "Silvestre, Christian"]
[WhiteFideId "2044447"]
[BlackFideId "30956269"]
[WhiteElo "2347"]
[BlackElo "2345"]
[Result "1-0"]
[Round "03"]
[TimeControl "180+1"]
[Date "2022.12.14"]
[WhiteClock "0:01:22"]
[BlackClock "0:00:06"]

1. d4 {[%clk 0:02:56]}  Nf6 {[%clk 0:02:59]} 2. Nc3 {[%clk 0:02:51]}  d5 {[%clk 0:02:58]} 3. Bf4 {[%clk 0:02:51]}  e6 {[%clk 0:02:58]} 4. e3 {[%clk 0:02:51]}  c5 {[%clk 0:02:57]} 5. Nb5 {[%clk 0:02:45]}  Na6 {[%clk 0:02:57]} 6. c3 {[%clk 0:02:44]}  Bd7 {[%clk 0:02:56]} 7. Nf3 {[%clk 0:02:44]}  Ne4 {[%clk 0:02:54]} 8. Bd3 {[%clk 0:02:38]}  c4 {[%clk 0:02:53]} 9. Bxe4 {[%clk 0:02:22]}  dxe4 {[%clk 0:02:52]} 10. Nd6+ {[%clk 0:02:18]}  Bxd6 {[%clk 0:02:51]} 11. Bxd6 {[%clk 0:02:19]}  Bc6 {[%clk 0:02:41]} 12. Ba3 {[%clk 0:02:11]}  exf3 {[%clk 0:02:40]} 13. gxf3 {[%clk 0:02:12]}  Qf6 {[%clk 0:02:33]} 14. e4 {[%clk 0:02:11]}  O-O-O {[%clk 0:02:32]} 15. Qe2 {[%clk 0:02:08]}  Qf4 {[%clk 0:02:22]} 16. Rg1 {[%clk 0:02:02]}  f5 {[%clk 0:02:22]} 17. Qxc4 {[%clk 0:01:38]}  Rhe8 {[%clk 0:01:11]} 18. b4 {[%clk 0:01:33]}  Qxf3 {[%clk 0:00:56]} 19. b5 {[%clk 0:01:31]}  Qxe4+ {[%clk 0:00:55]} 20. Kd2 {[%clk 0:01:31]}  Qf4+ {[%clk 0:00:39]} 21. Kc2 {[%clk 0:01:32]}  Qxf2+ {[%clk 0:00:25]} 22. Kb3 {[%clk 0:01:32]}  Qf3 {[%clk 0:00:13]} 23. bxc6 {[%clk 0:01:31]}  Qxc6 {[%clk 0:00:13]} 24. Qxc6+ {[%clk 0:01:31]}  bxc6 {[%clk 0:00:14]} 25. Rxg7 {[%clk 0:01:32]}  Rd7 {[%clk 0:00:13]} 26. Rag1 {[%clk 0:01:29]}  Nc7 {[%clk 0:00:12]} 27. Rxd7 {[%clk 0:01:28]}  Kxd7 {[%clk 0:00:13]} 28. Rg7+ {[%clk 0:01:28]}  Kc8 {[%clk 0:00:13]} 29. Bd6 {[%clk 0:01:24]}  Nb5 {[%clk 0:00:11]} 30. Be5 {[%clk 0:01:21]}  h5 {[%clk 0:00:11]} 31. a4 {[%clk 0:01:21]}  a6 {[%clk 0:00:05]} 32. axb5 {[%clk 0:01:20]}  axb5 {[%clk 0:00:06]} 33. Rc7+ {[%clk 0:01:20]}  Kd8 {[%clk 0:00:05]} 34. Rxc6 {[%clk 0:01:20]}  Kd7 {[%clk 0:00:06]} 35. Rd6+ {[%clk 0:01:21]}  Ke7 {[%clk 0:00:06]} 36. Rb6 {[%clk 0:01:21]}  Rf8 {[%clk 0:00:06]} 37. Bd6+ {[%clk 0:01:21]}  Kf7 {[%clk 0:00:06]} 38. Bxf8 {[%clk 0:01:22]} 1-0


[Site "https://www.chess.com"]

[Event "Titled Tuesday Blitz December 13 Early 2022"]
[White "Corrales Jimenez, Fidel"]
[Black "Winterberg, Lukas"]
[WhiteFideId "3506690"]
[BlackFideId "24622702"]
[WhiteElo "2541"]
[BlackElo "2350"]
[Result "0-1"]
[Round "03"]
[TimeControl "180+1"]
[Date "2022.12.14"]
[WhiteClock "0:00:45"]
[BlackClock "0:02:17"]

1. d4 {[%clk 0:02:08]}  Nf6 {[%clk 0:02:59]} 2. Nc3 {[%clk 0:02:07]}  d5 {[%clk 0:02:59]} 3. Bf4 {[%clk 0:02:06]}  a6 {[%clk 0:02:58]} 4. e3 {[%clk 0:02:04]}  e6 {[%clk 0:02:58]} 5. g4 {[%clk 0:02:04]}  b5 {[%clk 0:02:58]} 6. g5 {[%clk 0:02:04]}  Nfd7 {[%clk 0:02:58]} 7. h4 {[%clk 0:02:04]}  c5 {[%clk 0:02:58]} 8. h5 {[%clk 0:02:03]}  Nc6 {[%clk 0:02:58]} 9. h6 {[%clk 0:02:04]}  g6 {[%clk 0:02:58]} 10. Nf3 {[%clk 0:02:03]}  Nb6 {[%clk 0:02:53]} 11. Ne5 {[%clk 0:01:55]}  Bb7 {[%clk 0:02:49]} 12. Nxc6 {[%clk 0:01:55]}  Bxc6 {[%clk 0:02:50]} 13. Be5 {[%clk 0:01:55]}  Rg8 {[%clk 0:02:50]} 14. Bf6 {[%clk 0:01:50]}  Be7 {[%clk 0:02:49]} 15. dxc5 {[%clk 0:01:50]}  Bxf6 {[%clk 0:02:48]} 16. gxf6 {[%clk 0:01:49]}  Nd7 {[%clk 0:02:48]} 17. b4 {[%clk 0:01:46]}  Qxf6 {[%clk 0:02:45]} 18. Qd4 {[%clk 0:01:46]}  e5 {[%clk 0:02:33]} 19. Nxd5 {[%clk 0:01:44]}  exd4 {[%clk 0:02:31]} 20. Nxf6+ {[%clk 0:01:44]}  Nxf6 {[%clk 0:02:32]} 21. Rh3 {[%clk 0:01:40]}  O-O-O {[%clk 0:02:30]} 22. a4 {[%clk 0:01:31]}  dxe3 {[%clk 0:02:25]} 23. Rxe3 {[%clk 0:01:27]}  Nd5 {[%clk 0:02:25]} 24. axb5 {[%clk 0:01:05]}  Nxe3 {[%clk 0:02:22]} 25. Bh3+ {[%clk 0:00:48]}  Kb8 {[%clk 0:02:21]} 26. Rxa6 {[%clk 0:00:47]}  Nxc2+ {[%clk 0:02:19]} 27. Kf1 {[%clk 0:00:45]}  Bxb5+ {[%clk 0:02:17]} 0-1


[Site "https://www.chess.com"]

[Event "Titled Tuesday Blitz December 13 Early 2022"]
[White "Crevatin, Leo"]
[Black "Akylbekov, Nasyr"]
[WhiteFideId "1726307"]
[BlackFideId "13800353"]
[WhiteElo "2190"]
[BlackElo "2310"]
[Result "1/2-1/2"]
[Round "03"]
[TimeControl "180+1"]
[Date "2022.12.14"]
[WhiteClock "0:00:51"]
[BlackClock "0:01:22"]

1. d4 {[%clk 0:03:00]}  Nf6 {[%clk 0:02:59]} 2. Bf4 {[%clk 0:03:00]}  e6 {[%clk 0:02:59]} 3. e3 {[%clk 0:03:01]}  d5 {[%clk 0:02:59]} 4. Nf3 {[%clk 0:03:00]}  Bd6 {[%clk 0:03:00]} 5. Ne5 {[%clk 0:03:00]}  Nbd7 {[%clk 0:02:59]} 6. Nd2 {[%clk 0:02:56]}  Nf8 {[%clk 0:02:59]} 7. Bg3 {[%clk 0:02:44]}  Ng6 {[%clk 0:02:57]} 8. f4 {[%clk 0:02:29]}  Ne4 {[%clk 0:02:52]} 9. Bd3 {[%clk 0:02:25]}  f5 {[%clk 0:02:43]} 10. O-O {[%clk 0:02:21]}  Bxe5 {[%clk 0:02:42]} 11. fxe5 {[%clk 0:02:19]}  O-O {[%clk 0:02:42]} 12. Nxe4 {[%clk 0:02:15]}  fxe4 {[%clk 0:02:42]} 13. Be2 {[%clk 0:02:16]}  Qg5 {[%clk 0:02:38]} 14. Rxf8+ {[%clk 0:02:12]}  Kxf8 {[%clk 0:02:38]} 15. Qd2 {[%clk 0:02:11]}  Bd7 {[%clk 0:02:36]} 16. Rf1+ {[%clk 0:02:10]}  Kg8 {[%clk 0:02:37]} 17. Bf4 {[%clk 0:02:05]}  Nxf4 {[%clk 0:02:35]} 18. Rxf4 {[%clk 0:02:05]}  Rf8 {[%clk 0:02:32]} 19. g3 {[%clk 0:01:59]}  Rxf4 {[%clk 0:02:29]} 20. exf4 {[%clk 0:02:00]}  Qe7 {[%clk 0:02:30]} 21. Qa5 {[%clk 0:01:57]}  c6 {[%clk 0:02:23]} 22. c3 {[%clk 0:01:48]}  a6 {[%clk 0:02:12]} 23. Qc7 {[%clk 0:01:46]}  b5 {[%clk 0:02:12]} 24. Qa7 {[%clk 0:01:38]}  b4 {[%clk 0:01:54]} 25. Qb8+ {[%clk 0:01:36]}  Be8 {[%clk 0:01:37]} 26. Qxb4 {[%clk 0:01:35]}  Qa7 {[%clk 0:01:37]} 27. Qa5 {[%clk 0:01:29]}  Qb7 {[%clk 0:01:35]} 28. b4 {[%clk 0:01:29]}  g5 {[%clk 0:01:30]} 29. Qd8 {[%clk 0:01:20]}  Kf8 {[%clk 0:01:27]} 30. Qxg5 {[%clk 0:01:17]}  a5 {[%clk 0:01:28]} 31. Qf6+ {[%clk 0:01:15]}  Kg8 {[%clk 0:01:25]} 32. Qd8 {[%clk 0:01:14]}  axb4 {[%clk 0:01:23]} 33. Qxe8+ {[%clk 0:01:14]}  Kg7 {[%clk 0:01:23]} 34. cxb4 {[%clk 0:01:03]}  Qxb4 {[%clk 0:01:23]} 35. Qxe6 {[%clk 0:01:02]}  Qe1+ {[%clk 0:01:20]} 36. Bf1 {[%clk 0:01:02]}  Qe3+ {[%clk 0:01:21]} 37. Kg2 {[%clk 0:01:03]}  Qf3+ {[%clk 0:01:21]} 38. Kh3 {[%clk 0:00:53]}  Qh5+ {[%clk 0:01:21]} 39. Kg2 {[%clk 0:00:53]}  Qf3+ {[%clk 0:01:21]} 40. Kg1 {[%clk 0:00:53]}  Qe3+ {[%clk 0:01:21]} 41. Kh1 {[%clk 0:00:51]}  Qf3+ {[%clk 0:01:21]} 42. Kg1 {[%clk 0:00:51]}  Qe3+ {[%clk 0:01:22]} 1/2-1/2


[Site "https://www.chess.com"]